Cogmind - Beta 15 @@@ ROGUE MODE // 2025.06.15 @ 22:12:27 Player: nado Result: Destroyed by GE-0TK(M) with Battle Rifle Performance ------------- Evolutions (3) 1500 Regions Visited (9) 1800 Robots Destroyed (78) 390 Value Destroyed (2323) 2323 Prototype IDs (5) 100 Alien Tech Used (1) 200 Bonus (649) 649 TOTAL SCORE: 6962 Bonus ------- Follower Combat Kills 670 Met Imprinter 300 Friendly Fire -321 Cogmind --------- Core Integrity 0/700 Matter 290/300 Energy 100/100 System Corruption 13% Temperature Cool (0) Movement Core (1350) Ox26 Location -7/Zion Parts ------- > --- POWER (1) -------- (None) > --- PROPULSION (3) --- (None) > --- UTILITY (6) ------ Huge Storage Unit > --- WEAPON (4) ------- (None) > --- INVENTORY (25) --- Heavy Ion Engine Improved Treads Improved Treads Huge Storage Unit Experimental Sensor Array Transmission Jammer Light Armor Plating Reactive Plating Reactive Plating Reactive Plating Reactive Plating High-powered Tractor Beam Beamcaster Barrage Gun Gauss Rifle Gauss Rifle Gauss Rifle Gauss Rifle Flak Gun Gauss Cannon Proton Missile Launcher Rocket Launcher Peak State ------------ > --- POWER ------------ Heavy Ion Engine > --- PROPULSION ------- Light Treads Armored Huge Wheel > --- UTILITY ---------- Improved Heat Sink Huge Storage Unit Improved Sensor Array Improved Signal Interpreter Improved Light Armor Plating Reactive Plating > --- WEAPON ----------- Heavy Particle Cannon Heavy Ion Cannon Barrage Gun Gauss Rifle > --- INVENTORY -------- Heavy Ion Engine Light Treads Light Treads Light Treads Improved Treads Improved Treads Huge Storage Unit Experimental Sensor Array Transmission Jammer Light Armor Plating Reactive Plating Reactive Plating Reactive Plating Reactive Plating High-powered Tractor Beam Gauss Rifle Gauss Rifle Gauss Rifle Flak Gun Gauss Cannon Proton Missile Launcher Grenade Launcher Rocket Launcher Heavy Rocket Launcher Powered Hammer [Rating: 49] Favorites ----------- Power Heavy Ion Engine Engine Heavy Ion Engine Power Core Light Nuclear Core Propulsion VSS Leg Treads Light Treads Leg VSS Leg Wheel Compact Wheel Utility Huge Storage Unit Device Improved Heat Sink Storage Huge Storage Unit Processor Improved Signal Interpreter Hackware System Shield Protection Light Armor Plating Weapon Heavy Assault Rifle Energy Cannon Heavy Ion Cannon Ballistic Gun Heavy Assault Rifle Ballistic Cannon Gauss Cannon Launcher Heavy Rocket Launcher Impact Weapon Powered Hammer Build | -11 -10 -10 -9 -9 -9 -7 -7 -7 -7 ------- Run | Yrd Mat Min Mat Sto Rec Fac Low Low Zio Slots Evolved 6 | . . . 2 . . 4 . . . Power . | . . . . . . . . . . Propulsion 1 | . . . . . . 1 . . . Utility 4 | . . . 1 . . 3 . . . Weapon 1 | . . . 1 . . . . . . Parts Attached 63 | . 9 6 9 14 1 15 2 2 5 Power 5 | . 1 1 1 1 . 1 . . . Engine 4 | . 1 . 1 1 . 1 . . . Core 1 | . . 1 . . . . . . . Reactor . | . . . . . . . . . . Propulsion 16 | . 4 2 2 . . 4 . 1 3 Treads 6 | . . . . . . 3 . . 3 Leg 8 | . 4 2 2 . . . . . . Wheel 2 | . . . . . . 1 . 1 . Hover . | . . . . . . . . . . Flight . | . . . . . . . . . . Utility 17 | . 3 1 2 4 1 6 . . . Device 4 | . . 1 . 1 . 2 . . . Storage 3 | . 2 . 1 . . . . . . Processor 1 | . . . . . . 1 . . . Hackware 1 | . . . . . . 1 . . . Protection 8 | . 1 . 1 3 1 2 . . . Artifact . | . . . . . . . . . . Weapon 25 | . 1 2 4 9 . 4 2 1 2 Energy Gun . | . . . . . . . . . . Energy Cannon 2 | . . . . . . 1 1 . . Ballistic Gun 17 | . 1 2 3 8 . 1 . 1 1 Ballistic Cannon 1 | . . . . . . 1 . . . Launcher 4 | . . . 1 1 . 1 1 . . Special Weapon . | . . . . . . . . . . Impact Weapon 1 | . . . . . . . . . 1 Slashing Weapon . | . . . . . . . . . . Piercing Weapon . | . . . . . . . . . . Special Melee Weapon . | . . . . . . . . . . Unidentified Prototypes 1 | . . . . . . . . 1 . Parts Lost 21 | . 1 2 . 3 2 . . . 13 Power 2 | . . 1 . . . . . . 1 Propulsion 5 | . . . . . . . . . 5 Utility 8 | . 1 . . 2 2 . . . 3 Weapon 6 | . . 1 . 1 . . . . 4 Highest Loss Streak 13 | . 1 1 . 1 1 . . . 13 To Critical Strikes . | . . . . . . . . . . Average Backups 22 | . 11 14 16 24 25 24 25 25 24 Power 1 | . 1 1 1 1 2 1 1 1 1 Propulsion 7 | . 5 5 5 9 10 5 5 5 4 Utility 6 | . . 1 5 6 7 9 10 9 9 Weapon 6 | . 4 6 4 5 6 8 9 9 10 Tool/Special . | . . . . . . . . . . Unused Backups 49 | . 9 3 5 7 . 5 1 1 18 Power 5 | . 1 . 1 2 . . . . 1 Propulsion 16 | . 3 1 3 4 . 2 . 1 2 Utility 11 | . 1 . . . . . 1 . 9 Weapon 17 | . 4 2 1 1 . 3 . . 6 Tool/Special . | . . . . . . . . . . Average Slot Usage (%) 95 | . 91 99 96 97 94 96 100 94 88 Engine 8 | . 14 . 7 11 11 7 7 7 6 Core 1 | . . 13 3 . . . . . . Treads 4 | . . . . . . 16 15 13 7 Leg 15 | . 28 28 22 22 22 . . . . Wheel 2 | . . . . . . 5 7 7 6 Device 8 | . . 13 11 4 6 10 15 14 13 Storage 10 | . 14 14 11 11 11 7 7 7 7 Processor 2 | . . . . . . 3 7 7 6 Protection 11 | . 6 . 7 15 10 16 15 14 13 Energy Cannon 3 | . . . . . . 3 14 14 13 Ballistic Gun 24 | . 28 28 32 32 33 15 6 8 12 Peak Build Rating 49 | . 8 13 21 25 25 40 40 48 49 Average Rating 26 | . 7 12 20 22 24 34 40 41 46 On Entrance 23 | 6 6 7 13 21 25 24 40 40 48 Naked Turns . | . . . . . . . . . . Heaviest Build 124 | 13 31 29 98 103 101 123 124 123 124 Greatest Support 60 | 20 20 20 24 24 24 60 16 28 60 Greatest Overweight (x) 26 | . 1 1 4 4 4 7 7 7 26 Average Overweight (x) 3 | . . 1 1 4 4 5 7 6 3 Largest Inventory Capacity 25 | . 15 15 25 25 25 25 25 25 25 Average Capacity 22 | . 13 15 18 25 25 25 25 25 25 Most Carried 25 | . 15 15 19 25 25 25 25 25 25 Average Carried 22 | . 12 14 16 24 25 24 25 24 24 Final Capacity 25 | 8 15 15 25 25 25 25 25 25 25 Final Carried 25 | 6 15 15 19 25 25 25 25 25 22 Class Distribution -------------------- 55% | Tank 14% | Commander-Tank 11% | Mutant 8% | Scavenger-Mutant 6% | Scavenger-Tank Dominant Class ---------------- Mutant | -10/Materials Scavenger-Mutant | -10/Mines Scavenger-Tank | -9/Materials Commander-Tank | -9/Storage Tank | -9/Recycling Tank | -7/Factory Tank | -7/Lower Caves Tank | -7/Lower Caves Tank | -7/Zion Resources | -11 -10 -10 -9 -9 -9 -7 -7 -7 -7 ----------- Run | Yrd Mat Min Mat Sto Rec Fac Low Low Zio Matter Collected 2001 | 200 262 167 221 274 227 138 363 85 64 Remotely . | . . . . . . . . . . Salvage Created 2703 | . 661 224 494 499 208 298 244 . 75 Parts 187 | . 49 17 38 43 16 17 3 . 4 Haulers Intercepted 8 | . 2 . 2 3 . 1 . . . Recyclers Shooed 4 | . 2 . 1 1 . . . . . Parts Field Recycled . | . . . . . . . . . . Retrieved Matter . | . . . . . . . . . . Parts Self-Destructed 7 | . . . . . . . 3 . 4 Prevented 1 | . . . . . . . . . 1 Kills | -11 -10 -10 -9 -9 -9 -7 -7 -7 -7 ------- Run | Yrd Mat Min Mat Sto Rec Fac Low Low Zio Combat Hostiles Destroyed 63 | . 17 10 10 8 4 5 7 . 2 Guns 45 | . 17 10 7 5 4 2 . . . Cannons 7 | . . . . . . 2 5 . . AOE 11 | . . . 3 3 . 1 2 . 2 Classes Destroyed 11 | . 3 . 3 3 . 1 . . 1 Builder 3 | . . . 1 2 . . . . . Hauler 8 | . 2 . 2 3 . 1 . . . Recycler 3 | . . . . 1 . 2 . . . Operator 1 | . . . . 1 . . . . . Swarmer 17 | . 6 8 . . . 2 1 . . Grunt 27 | . 11 2 5 3 . 2 4 . . Duelist 2 | . . . 1 . . . 1 . . Protector 1 | . . . . 1 . . . . . Sentry 13 | . . . 4 4 4 . 1 . . Programmer 1 | . . . . . . 1 . . . Butcher 1 | . . . . . . . . . 1 Fireman 1 | . . . . . . . . . 1 Best Kill Streak 6 | . 5 3 3 6 2 2 4 . 2 Combat Bots Only 4 | . 4 3 3 4 2 2 4 . 2 Max Kills in Single Turn 3 | . 1 1 3 2 1 1 1 . 2 Gunslinging . | . . . . . . . . . . Exploded 2 | . . . 2 1 . 1 1 . 2 Melee . | . . . . . . . . . . Uniques/NPCs Destroyed . | . . . . . . . . . . Combat | -11 -10 -10 -9 -9 -9 -7 -7 -7 -7 -------- Run | Yrd Mat Min Mat Sto Rec Fac Low Low Zio Hostile Shots Fired 481 | . 56 50 33 56 30 46 41 . 169 Missed 147 | . 21 13 12 15 4 14 12 . 56 Hits 334 | . 35 37 21 41 26 32 29 . 113 Melee 24 | . . . . . . . 2 . 22 Projectile 310 | . 35 37 21 41 26 32 27 . 91 AOE 1 | . . . . . . . . . 1 Critical Strikes 12 | . 1 . . 2 1 2 . . 6 Part Disruptions 2 | . . . . . . . . . 2 Damage Taken 5111 | . 394 351 339 654 378 413 395 . 2187 Core 1000 | . 57 61 74 74 31 128 14 . 561 Absorbed by Shields . | . . . . . . . . . . Ignored by Resistances 92 | . . . . . . 75 17 . . Core Remaining (%) 69 | 100 . 52 . . 55 . . . . Volleys Fired 190 | . 49 25 26 29 13 30 13 3 2 Largest 3 | . 2 2 3 3 3 3 3 3 3 Hottest 179 | . 40 40 66 69 69 133 179 168 168 Shots Fired 440 | . 98 50 74 76 39 64 30 5 4 Gun 372 | . 98 50 72 71 39 36 4 1 1 Cannon 54 | . . . . . . 25 23 4 2 Launcher 14 | . . . 2 5 . 3 3 . 1 Special . | . . . . . . . . . . Kinetic 382 | . 98 50 72 71 39 43 7 1 1 Thermal 44 | . . . . . . 18 20 4 2 Explosive 14 | . . . 2 5 . 3 3 . 1 Electromagnetic . | . . . . . . . . . . Robot Hit Streak 32 | . 17 32 9 10 14 11 9 . 2 Robot Miss Streak 4 | . 3 3 3 3 1 3 4 . . Penetration Max . | . . . . . . . . . . Secondary Targets 5 | . 1 3 . . . 1 . . . Max Gunslinging Chain 1 | . 1 1 . . . 1 . . . Shots Hit Robots 294 | . 72 33 51 53 31 35 17 . 2 Core Hits 159 | . 35 17 32 33 7 17 13 . 5 Critical Kills 2 | . 1 . 1 . . . . . . Critical Parts Destroyed 3 | . 1 . . . 1 1 . . . Critical Strikes 6 | . 2 . 1 . 1 2 . . . Destroy 5 | . 2 . 1 . 1 1 . . . Blast 1 | . . . . . . 1 . . . Melee Attacks 17 | . . . . . . . . . 17 Impact 17 | . . . . . . . . . 17 Slashing . | . . . . . . . . . . Piercing . | . . . . . . . . . . Sneak Attacks 1 | . . . . . . . . . 1 Combat Hostiles . | . . . . . . . . . . Follow-up Attacks . | . . . . . . . . . . Damage Inflicted 5990 | . 804 358 820 1348 460 886 782 . 532 Guns 3186 | . 795 358 474 679 446 395 39 . . Cannons 817 | . . . . . . 413 404 . . Explosions 1803 | . . . 324 640 . 75 339 . 425 Melee 107 | . . . . . . . . . 107 Ramming 77 | . 9 . 22 29 14 3 . . . Kinetic 3386 | . 795 358 474 679 446 539 95 . . Thermal 617 | . . . . . . 269 348 . . Explosive 1803 | . . . 324 640 . 75 339 . 425 Electromagnetic . | . . . . . . . . . . Impact 107 | . . . . . . . . . 107 Slashing . | . . . . . . . . . . Piercing . | . . . . . . . . . . Highest Corruption 13 | . . . . . 1 1 1 1 13 Average Corruption 1 | . . . . . 1 1 1 1 4 Corruption Purged . | . . . . . . . . . . Corruption Blocked . | . . . . . . . . . . Effects 40 | . . . . . 9 5 11 12 3 Message Errors 9 | . . . . . 2 . 1 4 2 Matter Fused 10 | . . . . . 2 1 4 3 . Heat Flow Errors 5 | . . . . . 1 1 3 . . Energy Discharges 3 | . . . . . . . . 3 . Data Loss (minor) 6 | . . . . . 2 1 . 2 1 Data Loss (major) 4 | . . . . . 1 2 1 . . Misfires 1 | . . . . . . . 1 . . Alerts 2 | . . . . . 1 . 1 . . Overload Shots . | . . . . . . . . . . Overflow Damage 78 | . . . . 1 . 3 . . 74 Projectiles 3 | . . . . . . 3 . . . Explosions 8 | . . . . 1 . . . . 7 Melee 67 | . . . . . . . . . 67 Knockbacks 3 | . . . . 1 . 1 . . 1 Impact 2 | . . . . 1 . . . . 1 Kinetic 1 | . . . . . . 1 . . . Secondary . | . . . . . . . . . . Self-Inflicted Damage 127 | . . . 58 . . . 30 . 39 Shots 3 | . . . 1 . . . 1 . 1 Rammed 1 | . . . . . . 1 . . . Targets Rammed 18 | . 3 . 6 6 2 1 . . . Kicked 17 | . 3 . 6 6 2 . . . . Crushed . | . . . . . . . . . . Highest Temperature 184 | . 55 18 7 54 148 99 184 63 65 Average Temperature 31 | . 11 9 3 27 27 23 76 29 30 Received Heat Transfer 1536 | . 174 87 126 276 144 36 138 . 555 Siege Activations . | . . . . . . . . . . Martial Activations . | . . . . . . . . . . Shielding Activations . | . . . . . . . . . . Robots Disrupted . | . . . . . . . . . . Combat Hostiles . | . . . . . . . . . . Robots Corrupted . | . . . . . . . . . . Combat Hostiles . | . . . . . . . . . . Parts Fried . | . . . . . . . . . . Impact Corruptions 2 | . . . . . . . . . 2 Robots Melted . | . . . . . . . . . . Combat Hostiles . | . . . . . . . . . . Parts Melted . | . . . . . . . . . . Heat Transferred 851 | . . . . . . 370 481 . . Parts Sabotaged . | . . . . . . . . . . Parts Stolen . | . . . . . . . . . . Parts Stripped . | . . . . . . . . . . Power Chain Reactions . | . . . . . . . . . . Alert | -11 -10 -10 -9 -9 -9 -7 -7 -7 -7 ------- Run | Yrd Mat Min Mat Sto Rec Fac Low Low Zio Maximum Alert Level 1 | . . . 1 1 . . . . . Low Security (%) 91 | . 100 100 81 75 100 100 . . . Level 1 8 | . . . 18 24 . . . . . Level 2 . | . . . . . . . . . . Level 3 . | . . . . . . . . . . Level 4 . | . . . . . . . . . . Level 5 . | . . . . . . . . . . High Security . | . . . . . . . . . . Max Security . | . . . . . . . . . . Peak Influence 317 | . 179 112 246 317 121 100 . . . Initial 121 | . . 12 . . 121 50 . . . Average 62 | . 67 17 118 136 10 18 . . . Influence Increases 2968 | . 534 230 458 1187 91 318 150 . . Destroy 0b10 Robot/C 1720 | . 340 200 200 660 80 100 140 . . Destroy 0b10 Robot/NC 100 | . 10 . 15 60 . 15 . . . Destroy Leader 400 | . 74 30 74 190 . 22 10 . . Allied During Kill 215 | . . . . 215 . . . . . Successful Hack 64 | . 20 . 9 24 11 . . . . Select Force Hacks 60 | . 60 . . . . . . . . Disable Machine 150 | . . . 90 15 . 45 . . . Destroy Structure 104 | . . . 55 23 . 26 . . . Advance Influence 50 | . . . . . . 50 . . . Lose Combat Pursuer 105 | . 30 . 15 . . 60 . . . Influence Decreases 2968 | . 502 262 456 876 404 261 207 . . Entered New Map 236 | . . 20 . 2 192 . 22 . . Time Decay 2159 | . 482 222 313 494 202 261 185 . . Lost Part 70 | . 10 20 . 30 10 . . . . Lost Ally 210 | . 10 . . 200 . . . . . Purge Threat 293 | . . . 143 150 . . . . . Squads Dispatched 13 | . 3 . 1 6 . 3 . . . Investigation 3 | . 2 . . 1 . . . . . Extermination 2 | . . . . . . 2 . . . Reinforcement 5 | . 1 . 1 2 . 1 . . . Assault 2 | . . . . 2 . . . . . Garrison 1 | . . . . 1 . . . . . Intercept . | . . . . . . . . . . Searches Triggered . | . . . . . . . . . . Construction Impeded . | . . . . . . . . . . Haulers Reinforced 1 | . . . . . . 1 . . . Active Scanning Responses . | . . . . . . . . . . Cargo Convoy Interrupts . | . . . . . . . . . . Stealth | -11 -10 -10 -9 -9 -9 -7 -7 -7 -7 --------- Run | Yrd Mat Min Mat Sto Rec Fac Low Low Zio Distress Signals 5 | . 1 . 1 3 . . . . . Communications Jammed . | . . . . . . . . . . Distress Signals . | . . . . . . . . . . Times Spotted 139 | . 34 11 16 36 4 8 7 . 23 Peak Tracking Total 15 | . 4 3 4 5 3 4 4 . 15 Tactical Retreats 8 | . 2 . 1 . . 4 . . 1 Traps | -11 -10 -10 -9 -9 -9 -7 -7 -7 -7 ------- Run | Yrd Mat Min Mat Sto Rec Fac Low Low Zio Traps Triggered 3 | . . . . 3 . . . . . Indirectly . | . . . . . . . . . . Trap Hack Attempts . | . . . . . . . . . . Triggered . | . . . . . . . . . . Disarmed . | . . . . . . . . . . Reprogrammed . | . . . . . . . . . . Reused . | . . . . . . . . . . Traps Extracted . | . . . . . . . . . . Installed . | . . . . . . . . . . Triggered . | . . . . . . . . . . Machines | -11 -10 -10 -9 -9 -9 -7 -7 -7 -7 ---------- Run | Yrd Mat Min Mat Sto Rec Fac Low Low Zio Machines Disabled 10 | . . . 6 1 . 3 . . . Max in Single Turn 3 | . . . 3 1 . 1 . . . Garrison Access 2 | . . . . 1 . 1 . . . Machines Repaired . | . . . . . . . . . . Machines Dismantled . | . . . . . . . . . . Machines Sabotaged . | . . . . . . . . . . Overloaded Fab Kills . | . . . . . . . . . . Hacking | -11 -10 -10 -9 -9 -9 -7 -7 -7 -7 --------- Run | Yrd Mat Min Mat Sto Rec Fac Low Low Zio Machines Accessed 36 | . 8 . 5 9 7 4 1 1 1 Terminals 27 | . 6 . 5 7 6 2 . 1 . Fabricators 1 | . . . . . . 1 . . . Repair Stations 1 | . . . . 1 . . . . . Recycling Units 2 | . 2 . . . . . . . . Scanalyzers . | . . . . . . . . . . Garrison Access 2 | . . . . 1 . 1 . . . Total Hacks 103 | . 22 . 19 30 22 6 1 1 2 Successful 61 | . 18 . 10 12 15 2 1 1 2 Failed 41 | . 3 . 9 18 7 4 . . . Catastrophic 5 | . . . 1 2 1 1 . . . Database Lockouts 1 | . 1 . . . . . . . . Manual 79 | . 18 . 16 24 16 4 . . 1 Terminals 84 | . 20 . 19 25 16 3 . 1 . Fabricators 2 | . . . . . . 2 . . . Repair Stations 2 | . . . . 2 . . . . . Recycling Units 2 | . 2 . . . . . . . . Scanalyzers . | . . . . . . . . . . Garrison Access 4 | . . . . 3 . 1 . . . Terminal Hacks 24 | . 7 . 3 2 8 . 1 1 2 Record 7 | . . . . . 5 . 1 1 . Part Schematic 2 | . . . . . . . . . 2 Robot Analysis 2 | . 2 . . . . . . . . Prototype ID Bank 5 | . 4 . 1 . . . . . . Open Door 1 | . . . . 1 . . . . . Level Access Points 1 | . . . . . 1 . . . . Branch Access Points 2 | . . . 1 . 1 . . . . Alert Level 1 | . 1 . . . . . . . . Unreport Threat 2 | . . . 1 1 . . . . . Release Object 1 | . . . . . 1 . . . . Fabricator Hacks . | . . . . . . . . . . Repair Station Hacks 1 | . . . . 1 . . . . . Scan Component 1 | . . . . 1 . . . . . Recycling Unit Hacks . | . . . . . . . . . . Scanalyzer . | . . . . . . . . . . Garrison Access Hacks 2 | . . . . 1 . 1 . . . Seal Access 2 | . . . . 1 . 1 . . . Unauthorized Hacks 34 | . 11 . 7 8 7 1 . . . Terminals 32 | . 9 . 7 8 7 1 . . . Assimilate 1 | . 1 . . . . . . . . Botnet 9 | . 2 . 3 2 1 1 . . . Skim 22 | . 6 . 4 6 6 . . . . Fabricators . | . . . . . . . . . . Repair Stations . | . . . . . . . . . . Recycling Units 2 | . 2 . . . . . . . . Tunnel 2 | . 2 . . . . . . . . Scanalyzers . | . . . . . . . . . . Garrison Access . | . . . . . . . . . . Data Cores Recovered . | . . . . . . . . . . Used . | . . . . . . . . . . Hacking Detections 28 | . 6 . 5 9 4 3 . 1 . Full Trace Events 3 | . . . 1 1 1 . . . . Feedback Events 1 | . . . . . 1 . . . . Corruption 1 | . . . . . 1 . . . . Feedback Blocked . | . . . . . . . . . . Robot Schematics Acquired 2 | . . . . . . . . . 2 Robots Built . | . . . . . . . . . . Authchips . | . . . . . . . . . . Time . | . . . . . . . . . . Total Robot Build Rating . | . . . . . . . . . . Part Schematics Acquired 17 | . . . . . . . . . 17 Parts Built . | . . . . . . . . . . Authchips . | . . . . . . . . . . Time . | . . . . . . . . . . Total Part Build Rating . | . . . . . . . . . . Parts Repaired . | . . . . . . . . . . Time . | . . . . . . . . . . Parts Recycled . | . . . . . . . . . . Recycled Matter . | . . . . . . . . . . Retrieved Matter . | . . . . . . . . . . Retrieved Components . | . . . . . . . . . . Parts Scanalyzed . | . . . . . . . . . . Part Schematics Acquired . | . . . . . . . . . . Parts Damaged . | . . . . . . . . . . Bothacking | -11 -10 -10 -9 -9 -9 -7 -7 -7 -7 ------------ Run | Yrd Mat Min Mat Sto Rec Fac Low Low Zio Used RIF Installer . | . . . . . . . . . . Robots Hacked . | . . . . . . . . . . Non-combat . | . . . . . . . . . . Combat . | . . . . . . . . . . Robot Hacks Applied . | . . . . . . . . . . Relay Couplers Released . | . . . . . . . . . . Fabnet Peak Effective % . | . . . . . . . . . . Robots Rewired . | . . . . . . . . . . Allies Hacked . | . . . . . . . . . . Hacks Repelled . | . . . . . . . . . . Allies | -11 -10 -10 -9 -9 -9 -7 -7 -7 -7 -------- Run | Yrd Mat Min Mat Sto Rec Fac Low Low Zio Total Allies 22 | . 1 . . 12 . . . . 9 Largest Group 10 | . 1 . . 10 1 . . . 9 Highest-Rated Group 394 | . 10 . . 88 31 . . . 394 Highest-Rated Ally 96 | . 10 . . 31 31 . . . 96 Total Orders . | . . . . . . . . . . Ally Attacks 177 | . . . . 171 3 . . . 3 Total Damage 1929 | . . . . 1717 65 . . . 147 Kills 31 | . . . . 31 . . . . . Allies Corrupted . | . . . . . . . . . . Allies Melted 1 | . . . . . . . . . 1 Intel | -11 -10 -10 -9 -9 -9 -7 -7 -7 -7 ------- Run | Yrd Mat Min Mat Sto Rec Fac Low Low Zio Active Infowar (turns) 5259 | . . . . . . 716 1420 1011 2112 Sensors 5259 | . . . . . . 716 1420 1011 2112 Robot Analysis Total 2 | . 2 . . . . . . . . Derelict Logs Recovered 7 | . . 1 . . . . 2 3 1 Drone Launches . | . . . . . . . . . . Drone Recoveries . | . . . . . . . . . . Exploration | -11 -10 -10 -9 -9 -9 -7 -7 -7 -7 ------------- Run | Yrd Mat Min Mat Sto Rec Fac Low Low Zio Turns Passed 17351 | . 1895 1407 975 3416 3386 1674 1420 1011 2167 Spaces Moved 6628 | 1 925 696 337 720 739 722 670 511 1307 Core 1 | . . . . . . . . . 1 Treads 125 | . . . . . . 111 . . 14 Legs 3418 | 1 925 696 337 720 739 . . . . Wheels 3084 | . . . . . . 611 670 511 1292 Hover . | . . . . . . . . . . Flight . | . . . . . . . . . . Fastest Speed 120 | 120 120 190 180 450 450 190 205 160 130 Average Speed 245 | 120 170 190 245 450 450 207 205 194 160 Slowest Speed 1350 | 120 190 190 450 450 450 240 205 205 1350 Overloaded Moves . | . . . . . . . . . . Propulsion Burnouts . | . . . . . . . . . . Robots Hopped . | . . . . . . . . . . Potential Cave-ins . | . . . . . . . . . . Cave-ins Triggered . | . . . . . . . . . . Exploration Rate (%) 66 | 2 98 97 31 96 98 19 76 60 87 Regions Visited 9 Branch Regions 6 Pre-discovered Areas 12 | . 3 1 . 2 2 . . 2 2 Known Exits Taken 5 | . . . 1 . 1 1 1 1 . Unknown Exits Taken 4 | 1 1 1 . 1 . . . . . Scrap Searched 10 | . . 1 . . . . 2 3 4 Spaces Dug 1 | . . . . . . . . 1 . Terrain Destroyed 143 | . . . 59 22 . 27 34 1 . Melee . | . . . . . . . . . . Projectile 7 | . . . . . . 3 3 1 . AOE 136 | . . . 59 22 . 24 31 . . Terrain Rammed . | . . . . . . . . . . Walls Destroyed . | . . . . . . . . . . Machines Disabled . | . . . . . . . . . . Actions | -11 -10 -10 -9 -9 -9 -7 -7 -7 -7 --------- Run | Yrd Mat Min Mat Sto Rec Fac Low Low Zio Total 7343 | . 1159 739 439 834 766 846 690 524 1346 Wait 280 | . 152 . 41 21 12 49 2 . 3 Move 6619 | . 924 695 336 719 738 721 669 510 1307 Hop . | . . . . . . . . . . Pick Up 53 | . 11 4 10 12 . 12 1 2 1 Fast Attach 29 | . 2 2 4 4 1 8 . 4 4 Attach 11 | . . 2 1 . . 5 . . 3 Detach 3 | . 1 . . 1 . 1 . . . Swap 38 | . 7 4 5 11 . 4 4 . 3 Drop 69 | . 10 6 10 16 . 15 1 5 6 Fire 190 | . 49 25 26 29 13 30 13 3 2 Melee 17 | . . . . . . . . . 17 Ram . | . . . . . . . . . . Kick 17 | . 3 . 6 6 2 . . . . Crush 1 | . . . . . . 1 . . . Escape Stasis 15 | . . . . 15 . . . . . Rewire 1 | . . 1 . . . . . . . Trap . | . . . . . . . . . . Miscellaneous . | . . . . . . . . . . Route ------- -11/Scrapyard -10/Materials (discovered 5 exits: *Mat x3 / [*Min] / Sub) -10/Mines (discovered 3 exits: *Mat x2 / *Sub) -9/Materials (discovered 4 exits: [*Mat] / Min / *Sto x2) -9/Storage (discovered 2 exits: [*Mat] / *Rec) -9/Recycling (discovered 2 exits: *Fac / Scr) -7/Factory -7/Lower Caves -7/Lower Caves (discovered 2 exits: *Fac / *Zio) -7/Zion (discovered 1 exit: *Pro) History --------- Turn | Location | Event 1 | -11/Scrapyard | Discovered new exit (range 0) 1 | -11/Scrapyard | Entered Materials 101 | -10/Materials | Discovered new exit (range 11) 150 | -10/Materials | Discovered new exit (range 8) 152 | -10/Materials | Central database locked down 286 | -10/Materials | Learned location of 2 exits from Subcaves 298 | -10/Materials | Discovered new exit (range 8) 300 | -10/Materials | Build established: Mutant 618 | -10/Materials | Learned location of Mines (-9) 651 | -10/Materials | Learned 2 Mines zone layouts 675 | -10/Materials | Learned 4 Subcaves zone layouts 690 | -10/Materials | Learned Recycling recycling unit intel 744 | -10/Materials | Identified exit to Subcaves 778 | -10/Materials | Discovered new exit (range 8) 1896 | -10/Materials | Entered Mines 2214 | -10/Mines | Build established: Scavenger-Mutant 2481 | -10/Mines | Discovered new exit (range 10) 2591 | -10/Mines | Found a damaged Exp. Sensor Array with a note attached 2599 | -10/Mines | Found Prototype Device 2617 | -10/Mines | Learned location of Storage (-9) 2738 | -10/Mines | Received a Rocket Launcher from a helpful Derelict 2862 | -10/Mines | Discovered new exit (range 5) 2937 | -10/Mines | Discovered exit to Subcaves (range 15) 2961 | -10/Mines | Found DCF Scrap (11 items) 3303 | -10/Mines | Entered Materials 3303 | -9/Materials | Evolved 2 slots: Utility x1, Weapon x1 3502 | -9/Materials | Identified exit to Mines 3502 | -9/Materials | Identified exit to Storage 3744 | -9/Materials | Discovered new exit (range 3) 3910 | -9/Materials | Build established: Scavenger-Tank 4278 | -9/Materials | Entered Storage 4753 | -9/Storage | Assisted by bots powering up and referring to "LRC-V3" 5057 | -9/Storage | Build established: Commander-Tank 5824 | -9/Storage | Garrison activated, responded to threat 6464 | -9/Storage | Discovered new exit (range 5) 6846 | -9/Storage | Used back door to open Recycling access 6846 | -9/Storage | Discovered new exit (range 5) 7258 | -9/Storage | Learned location of Recycling (-9) 7320 | -9/Storage | Learned location of 3 exits from Materials 7325 | -9/Storage | Lost 3 allies 7352 | -9/Storage | Met a pair of Derelict thieves 7373 | -9/Storage | Learned location of 1 exit from Storage 7414 | -9/Storage | Learned Materials trap positions 7500 | -9/Storage | Learned Materials non-interactive machine intel 7543 | -9/Storage | Learned Materials repair station intel 7543 | -9/Storage | Build established: Tank 7595 | -9/Storage | Loaded intel: 13 trap records 7694 | -9/Storage | Entered Recycling 7694 | -9/Recycling | Accompanied by 1 ally 7695 | -9/Recycling | Loaded intel: 4 recycling unit locations 8720 | -9/Recycling | Discovered new exit (range 14) 9193 | -9/Recycling | Identified exit to Factory 9368 | -9/Recycling | Learned Materials stockpile data 9420 | -9/Recycling | Learned location of 1 exit from Storage 9436 | -9/Recycling | Identified exit to Scraptown 9452 | -9/Recycling | Learned Materials recycling unit intel 9479 | -9/Recycling | Learned Materials security intel 9514 | -9/Recycling | Learned Storage emergency access door positions 9915 | -9/Recycling | Scanned before Scraplab entrance 10018 | -9/Recycling | Entered Scraplab 11080 | -9/Recycling | Entered Factory 11080 | -7/Factory | Evolved 4 slots: Propulsion x1, Utility x3 12696 | -7/Factory | Discovered new exit (range 7) 12706 | -7/Factory | Identified exit to Lower Caves 12754 | -7/Factory | Entered Lower Caves 12904 | -7/Lower Caves | Learned 4 Factory zone layouts 12953 | -7/Lower Caves | Attracted the attention of an 0b10 checkpoint 13071 | -7/Lower Caves | Encountered a Warlord checkpoint 13211 | -7/Lower Caves | Learned Factory emergency access door positions 14056 | -7/Lower Caves | Discovered new exit (range 5) 14066 | -7/Lower Caves | Identified exit to Lower Caves 14174 | -7/Lower Caves | Entered another Lower Caves area 14175 | -7/Lower Caves | Encountered a Warlord checkpoint 14263 | -7/Lower Caves | Discovered new exit (range 12) 14283 | -7/Lower Caves | Identified exit to Factory 14384 | -7/Lower Caves | Learned location of Extension (-4) 14557 | -7/Lower Caves | Found Alien Artifact 14557 | -7/Lower Caves | Identified Core Expander 14557 | -7/Lower Caves | Installed Core Expander, added new Weapon slot 14977 | -7/Lower Caves | Found DCF Scrap (15 items) 15091 | -7/Lower Caves | Discovered new exit (range 6) 15097 | -7/Lower Caves | Identified exit to Zion 15185 | -7/Lower Caves | Entered Zion 15269 | -7/Zion | System corruption cleaned by Quarantine Array 15344 | -7/Zion | Gained Derelict followers 15384 | -7/Zion | Given the Hacking Drone Bay 15475 | -7/Zion | Given A8's code to call for help 15475 | -7/Zion | Discovered new exit (range 10) 15490 | -7/Zion | Identified exit to Proximity Caves 15800 | -7/Zion | Learned Factory emergency access door positions 15878 | -7/Zion | Learned location of Quarantine (-2) 16758 | -7/Zion | Gained Derelict followers 16795 | -7/Zion | Learned location of Armory (-3) 17118 | -7/Zion | Enhanced Grunt warped into view, answering call for help 17118 | -7/Zion | Enhanced Grunt warped into view, answering call for help 17232 | -7/Zion | Met Imprinter 17275 | -7/Zion | Attacked by Zionites 17287 | -7/Zion | Extracted access codes from Imprinter's data core 17297 | -7/Zion | Core integrity fell below 50% 17315 | -7/Zion | System corruption reached 10% 17332 | -7/Zion | Core integrity fell below 20% 17352 | -7/Zion | Destroyed by GE-0TK(M) with Battle Rifle Last Messages --------------- TC-R9B(z) bursts out of the Twisted Machinery. J5-9I8(z) bursts out of the Twisted Machinery. 17333_ J5-9I8(z) pulls a Mak. Shrapnel Gun out of the Twisted Machinery. 17333_ KF-8NG(z) destroyed. 17335_ 4U-6WP(z) overheating. 17336_ System corrupted: Component data lost. 17337_ 4U-6WP(z) overheating. 17338_ 4U-6WP(z) pulls a Mak. Sword out of the Twisted Machinery. 17338_ 4U-6WP(z) overheating. 17341_ Critical hit (Burn: +37). 17342_ Lgt. Treads destroyed. 17345_ 4U-6WP(z) heat damages Mak. Power Source, Mak. Laser, Unknown Leg. 17345_ Critical hit (Impale). 17345_ Lgt. Treads destroyed. 17346_ 4U-6WP(z) heat damages Unknown Leg, Mak. Laser. 17348_ 4U-6WP(z) overheating. 17350_ 1C-NK9(z) destroyed. 17351_ WW /5HK2%GLPH0ZUWZMT8AXB930PU4CDRR 17351_ 08-LRD(z) destroyed. 17352_ 4U-6WP(z) heat short circuits Mak. Power Source. Map ----- +----------------------------------------------------+ | ???????????????????????????????????????##"""""""## | | ????????????????????????????????????##?#"" ""##" | | ????????????????????????????????????#"##"" """" | | ????????????????????????????????????#"""""" | | ?????????????????????????####???????##""""" | | ??????????????????##??####""#######?#"" | | ??????????????????#"###""#""#""##"####" """ | | ?????????????????###""""""""""""""#"""" """ | | ?????????????????#""" """"""" """" """ | | ?????????????????##"" """""""" """ """" | | ?????????#####??##""" """#"##" """""#"" | | ??????????"""##?#"""" """"#"""""" """###" | | ??????????#"""###"" "##""""""" """##"" | | ??????????" X""##"" """"""""""" !% """##" | | ??????????# """"""""" """" ! """""" | | ?????????## """"""""" | | ?????????" """" | | ?????????" "#"""""""" """""" | | ????????## """"""""" "z#""" | | ????????# """""""##"#"" """#"" | | ??????#""####"##"####""" """#"" | | ??????###???########"" ""M "##""" """""##""""" | | ??????????????????#"" "" ""#""" """""""""" | | ????????????????###"" """#"" """"""""" | | ???????????????##"#"" "#"" """"###""""" | | ??????????????##"""" @ ""#"" """#?###""" | | ??????????????#""" /z ""#"" """"???##"" | | ????????????#"#"" zz! ""#"" ""????### | | ????????????#""" z z ""#"" " "#??????? | | ????????????#"" M% ""#"" "" ""#"?????? | | ????????????#"""""" z """""= "" """#?????? | | ????????????#####" "% " "##?????? | | ??"???#######"##""= <<